fUST/lending_fUST_20250808
["ID","MTS","AMOUNT","RATE_DAILY","PERIOD"]
[377900196,1754608243201,-696.5,0.00023287,2]
[377900198,1754608243214,-761.95,0.00023287,2]
[377900200,1754608243224,-521.74,0.00023287,2]
[377900202,1754608243233,-210.778512,0.00023287,7]
[377900204,1754608243243,-836.57,0.00023287,2]
[377900206,1754608243252,-635.36,0.00023287,2]
[377900208,1754608243261,-460.0,0.00023287,2]
[377900209,1754608243270,-210.778512,0.00023287,7]
[377900210,1754608243280,-460.0,0.00023287,2]
[377900211,1754608243289,-460.0,0.00023287,2]
[377900212,1754608243299,-217.68298232,0.00023287,2]
[377900213,1754608243308,-913.2,0.00023287,2]
[377900214,1754608243317,-151.0,0.00023287,7]
[377900215,1754608243326,-888.58,0.00023287,2]
[377900216,1754608243335,-151.0,0.00023287,7]
[377900217,1754608243344,-151.983936,0.00023287,7]
[377900218,1754608243353,-460.0,0.00023287,2]
[377900219,1754608243362,-460.0,0.00023287,2]
[377900220,1754608243371,-489.79,0.00023287,2]
[377900221,1754608243380,-151.0,0.00023287,7]
[377900222,1754608243389,-151.0,0.00023287,7]
[377900223,1754608243398,-460.0,0.00023287,2]
[377900224,1754608243407,-151.0,0.00023287,7]
[377900225,1754608243416,-151.0,0.00023287,7]
[377900226,1754608243426,-151.0,0.00023287,7]
[377900227,1754608243435,-460.0,0.00023287,2]
[377900228,1754608243443,-2254.66,0.00023287,2]
[377900229,1754608243452,-999.9,0.00023287,2]
[377900230,1754608243461,-557.67,0.00023287,2]
[377900231,1754608243470,-555.23,0.00023287,2]
[377900232,1754608243479,-460.0,0.00023287,2]
[377900233,1754608243488,-638.48,0.00023287,2]
[377900234,1754608243497,-1178.81,0.00023287,2]
[377900235,1754608243506,-151.0,0.00023287,7]
[377900236,1754608243515,-151.0,0.00023287,7]
[377900237,1754608243523,-460.0,0.00023287,2]
[377900238,1754608243532,-393.143006,0.00023287,7]
[377900239,1754608243541,-151.0,0.00023287,7]
[377900240,1754608243550,-460.0,0.00023287,2]
[377900241,1754608243559,-393.143006,0.00023287,7]
[377900242,1754608243568,-594.65,0.00023287,2]
[377900243,1754608243577,-460.0,0.00023287,2]
[377900244,1754608243586,-300.0,0.00023292,2]
[377900245,1754608243595,-151.0,0.00023292,2]
[377900246,1754608243604,-300.0,0.00023292,2]
[377900247,1754608243613,-300.0,0.00023292,2]
[377900248,1754608243623,-300.0,0.00023292,2]
[377900249,1754608243632,-151.0,0.00023292,2]
[377900250,1754608243641,-151.0,0.00023292,2]
[377900251,1754608243650,-151.0,0.00023292,2]
[377900252,1754608243659,-151.0,0.00023292,2]
[377900253,1754608243668,-300.0,0.00023292,2]
[377900254,1754608243677,-151.0,0.00023292,2]
[377900255,1754608243686,-300.0,0.00023292,2]
[377900256,1754608243695,-151.0,0.00023292,2]
[377900257,1754608243703,-300.0,0.00023292,2]
[377900258,1754608243713,-151.0,0.00023292,2]
[377900259,1754608243750,-300.0,0.00023292,2]
[377900260,1754608243759,-151.0,0.00023292,2]
[377900261,1754608243769,-300.0,0.00023292,2]
[377900262,1754608243778,-151.0,0.00023292,2]
[377900263,1754608243787,-151.0,0.00023292,2]
[377900264,1754608243795,-151.0,0.00023292,2]
[377900265,1754608243804,-300.0,0.00023292,2]
[377900266,1754608243813,-300.0,0.00023292,2]
[377900267,1754608243822,-2788.0,0.00023312,2]
[377900268,1754608243831,-2788.0,0.00023354,2]
[377900269,1754608243840,-151.0,0.00023404,7]
[377900270,1754608243849,-242.510226,0.00023404,7]
[377900271,1754608243858,-151.0,0.00023404,7]
[377900272,1754608243867,-151.0,0.00023404,7]
[377900273,1754608243876,-1255.721998,0.00023404,7]
[377900274,1754608243886,-1255.721998,0.00023404,7]
[377900275,1754608243895,-2788.0,0.00023404,2]
[377900276,1754608243904,-151.0,0.00023461,7]
[377900278,1754608243914,-151.0,0.00023461,7]
[377900280,1754608243924,-151.0,0.00023461,7]
[377900282,1754608243934,-503.336535,0.00023461,7]
[377900283,1754608243943,-503.336535,0.00023461,7]
[377900285,1754608243952,-151.0,0.00023461,7]
[377900287,1754608243961,-151.0,0.00023461,7]
[377900289,1754608243971,-151.0,0.00023461,7]
[377900291,1754608243980,-151.0,0.00023461,7]
[377900292,1754608243990,-291.76705895,0.00023461,2]
[377900293,1754608243999,-2788.0,0.00023532,2]
[377900294,1754608244034,-2788.0,0.00023542,2]
[377900295,1754608244044,-460.0,0.00023561,2]
[377900296,1754608244053,-460.0,0.00023561,2]
[377900297,1754608244063,-240.89198013,0.00023561,2]
[377900298,1754608244072,-460.0,0.00023561,2]
[377900299,1754608244081,-460.0,0.00023561,2]
[377900300,1754608244091,-460.0,0.00023561,2]
[377900301,1754608244100,-1545.01,0.00023561,2]
[377900302,1754608244109,-696.5,0.00023561,2]
[377900303,1754608244119,-761.95,0.00023561,2]
[377900304,1754608244128,-277.59336947,0.00023561,2]
[377900305,1754608244138,-521.74,0.00023561,2]
[377900306,1754608244148,-836.57,0.00023561,2]
[377900307,1754608244158,-635.36,0.00023561,2]
[377900308,1754608244167,-460.0,0.00023561,2]
[377900309,1754608244177,-460.0,0.00023561,2]
[377900310,1754608244187,-460.0,0.00023561,2]
[377900311,1754608244196,-913.2,0.00023561,2]
[377900312,1754608244208,-888.58,0.00023561,2]
[377900313,1754608244218,-460.0,0.00023561,2]
[377900314,1754608244228,-460.0,0.00023561,2]
[377900315,1754608244237,-489.79,0.00023561,2]
[377900316,1754608244246,-460.0,0.00023561,2]
[377900317,1754608244255,-460.0,0.00023561,2]
[377900318,1754608244265,-2254.66,0.00023561,2]
[377900319,1754608244275,-999.9,0.00023561,2]
[377900320,1754608244284,-557.67,0.00023561,2]
[377900321,1754608244293,-555.23,0.00023561,2]
[377900322,1754608244303,-460.0,0.00023561,2]
[377900323,1754608244312,-638.48,0.00023561,2]
[377900324,1754608244322,-1178.81,0.00023561,2]
[377900325,1754608244331,-460.0,0.00023561,2]
[377900326,1754608244340,-460.0,0.00023561,2]
[377900327,1754608244349,-594.65,0.00023561,2]
[377900328,1754608244358,-460.0,0.00023561,2]
[377900329,1754608244368,-326.13675322,0.00023583,2]
[377900330,1754608244377,-500.0,0.00023583,2]
[377900331,1754608244386,-1500.0,0.00023631,2]
[377900332,1754608244395,-151.0,0.00023649,7]
[377900333,1754608244403,-151.0,0.00023649,7]
[377900334,1754608244413,-151.0,0.00023649,7]
[377900335,1754608244423,-151.0,0.00023649,7]
[377900336,1754608244432,-393.143006,0.00023649,7]
[377900337,1754608244441,-393.143006,0.00023649,7]
[377900338,1754608244450,-2788.0,0.00023649,2]
[377900339,1754608244459,-861.2,0.00023662,2]
[377900340,1754608244468,-196.87884679,0.00023664,2]
[377900341,1754608244477,-2788.0,0.00023683,2]
[377900342,1754608244487,-151.0,0.00023683,7]
[377900343,1754608244496,-151.0,0.00023683,7]
[377900344,1754608244506,-151.0,0.00023683,7]
[377900346,1754608244515,-500.0,0.00023719,2]
[377900347,1754608244524,-151.0,0.00023777,2]
[377900348,1754608244534,-152.870138,0.00023777,7]
[377900349,1754608244543,-374.70937326,0.00023777,2]
[377900350,1754608244552,-291.76705892,0.00023796,2]
[377900352,1754608244562,-420.0,0.00023807,2]
[377900354,1754608244571,-460.0,0.00023835,2]
[377900356,1754608244581,-151.0,0.00023835,7]
[377900357,1754608244590,-151.0,0.00023835,7]
[377900359,1754608244599,-151.0,0.00023835,7]
[377900360,1754608244609,-151.0,0.00023835,7]
[377900361,1754608244619,-151.0,0.00023835,7]
[377900362,1754608244629,-151.0,0.00023835,7]
[377900363,1754608244638,-151.0,0.00023835,7]
[377900364,1754608244647,-151.0,0.00023835,7]
[377900365,1754608244657,-151.0,0.00023835,7]
[377900366,1754608244667,-151.0,0.00023835,7]
[377900367,1754608244676,-460.0,0.00023835,2]
[377900368,1754608244686,-151.0,0.00023835,7]
[377900369,1754608244695,-182.172375,0.00023835,7]
[377900370,1754608244705,-454.954228,0.00023835,7]
[377900371,1754608244715,-460.0,0.00023835,2]
[377900372,1754608244725,-460.0,0.00023835,2]
[377900373,1754608244734,-1255.721998,0.00023835,7]
[377900374,1754608244744,-460.0,0.00023835,2]
[377900375,1754608244753,-1255.721998,0.00023835,7]
[377900376,1754608244763,-1545.01,0.00023835,2]
[377900377,1754608244773,-151.0,0.00023835,7]
[377900378,1754608244782,-151.0,0.00023835,7]
[377900379,1754608244792,-151.0,0.00023835,7]
[377900380,1754608244802,-151.0,0.00023835,7]
[377900381,1754608244811,-151.0,0.00023835,7]
[377900382,1754608244821,-151.0,0.00023835,7]
[377900383,1754608244831,-151.0,0.00023835,7]
[377900384,1754608244841,-151.0,0.00023835,7]
[377900385,1754608244850,-151.0,0.00023835,7]
[377900386,1754608244860,-151.0,0.00023835,7]
[377900387,1754608244870,-151.0,0.00023835,7]
[377900388,1754608244879,-151.0,0.00023835,7]
[377900389,1754608244888,-151.0,0.00023835,7]
[377900390,1754608244898,-151.0,0.00023835,7]
[377900391,1754608244907,-151.0,0.00023835,7]
[377900392,1754608244916,-151.0,0.00023835,7]
[377900393,1754608244926,-151.0,0.00023835,7]
[377900394,1754608244935,-151.0,0.00023835,7]
[377900395,1754608244945,-244.864117,0.00023835,7]
[377900396,1754608244954,-696.5,0.00023835,2]
[377900397,1754608244964,-761.95,0.00023835,2]
[377900398,1754608244974,-521.74,0.00023835,2]
[377900399,1754608244983,-210.778512,0.00023835,7]
[377900400,1754608244993,-836.57,0.00023835,2]
[377900401,1754608245003,-460.0,0.00023835,2]
[377900402,1754608245013,-635.36,0.00023835,2]
[377900403,1754608245023,-210.778512,0.00023835,7]
[377900404,1754608245032,-460.0,0.00023835,2]
[377900405,1754608245042,-461.3695942,0.00023835,7]
[377900406,1754608245052,-378.46222615,0.00023835,2]
[377900407,1754608245062,-913.2,0.00023835,2]
[377900408,1754608245072,-888.58,0.00023835,2]
[377900409,1754608245081,-12660.90439413,0.00023835,7]
[377900410,1754608245092,-460.0,0.00023835,2]
[377900411,1754608245101,-460.0,0.00023835,2]
[377900412,1754608245111,-489.79,0.00023835,2]
[377900413,1754608245120,-225.663996,0.00023835,7]
[377900414,1754608245130,-460.0,0.00023835,2]
[377900415,1754608245140,-151.0,0.00023835,7]
[377900416,1754608245150,-360.83830214,0.00023835,2]
[377900417,1754608245160,-2254.66,0.00023835,2]
[377900418,1754608245170,-999.9,0.00023835,2]
[377900419,1754608245179,-557.67,0.00023835,2]
[377900420,1754608245189,-555.23,0.00023835,2]
[377900421,1754608245199,-460.0,0.00023835,2]
[377900422,1754608245214,-215.31718835,0.00023835,7]
[377900423,1754608245224,-638.48,0.00023835,2]
[377900424,1754608245233,-1178.81,0.00023835,2]
[377900425,1754608245242,-151.0,0.00023835,7]
[377900426,1754608245254,-460.0,0.00023835,2]
[377900427,1754608245263,-460.0,0.00023835,2]
[377900428,1754608245273,-594.65,0.00023835,2]
[377900429,1754608245283,-460.0,0.00023835,2]
[377900430,1754608245292,-500.0,0.000239,2]
[377900431,1754608245302,-1680.0,0.00023919,2]
[377900432,1754608245312,-5162.0,0.00023923,2]
[377900433,1754608245321,-151.0,0.00023923,7]
[377900434,1754608245331,-151.0,0.00023923,7]
[377900435,1754608245340,-151.0,0.00023923,7]
[377900436,1754608245350,-151.0,0.00023928,7]
[377900437,1754608245360,-164.250001,0.00023928,7]
[377900438,1754608245370,-503.336535,0.00023928,7]
[377900439,1754608245380,-503.336535,0.00023928,7]
[377900440,1754608245390,-174.057901,0.00023928,7]
[377900441,1754608245400,-151.0,0.00023928,7]
[377900442,1754608245410,-5162.0,0.00023929,2]
[377900443,1754608245419,-151.0,0.00023929,7]
[377900444,1754608245428,-151.0,0.00023929,7]
[377900445,1754608245439,-151.0,0.00023929,7]
[377900446,1754608245448,-195.07,0.00023933,2]
[377900447,1754608245457,-250.0,0.00023933,2]
[377900448,1754608245467,-205.622,0.00023933,2]
[377900449,1754608245477,-220.053,0.00023933,2]
[377900450,1754608245487,-250.0,0.00023933,2]
[377900451,1754608245496,-260.849,0.00023933,2]
[377900452,1754608245506,-219.412,0.00023933,2]
[377900453,1754608245515,-636.0,0.00023933,2]
[377900454,1754608245524,-971.0,0.00023933,2]
[377900455,1754608245535,-2149.0,0.00023933,2]
[377900456,1754608245545,-151.0,0.00023933,7]
[377900457,1754608245555,-151.0,0.00023933,7]
[377900458,1754608245564,-152.060871,0.00023933,7]
[377900459,1754608245574,-150.0,0.00023946,2]
[377900460,1754608245584,-178.08,0.00023973,2]
[377900461,1754608245593,-716.91917713,0.00023973,2]
[377900462,1754608245603,-151.0,0.00024,6]
[377900463,1754608245613,-160.0,0.00024,7]
[377900464,1754608245622,-160.0,0.00024,7]
[377900465,1754608245632,-160.0,0.00024,7]
[377900466,1754608245641,-842.63596909,0.00024,7]
[377900467,1754608245652,-527.57568145,0.00024,7]
[377900468,1754608245662,-231.83071243,0.00024,7]
[377900469,1754608245672,-160.0,0.00024,7]
[377900470,1754608245681,-312.16666667,0.00024,7]
[377900471,1754608245691,-160.0,0.00024,7]
[377900473,1754608245701,-151.0,0.00024009,7]
[377900475,1754608245711,-151.0,0.00024009,7]
[377900477,1754608245720,-151.0,0.00024009,7]
[377900479,1754608245730,-393.143006,0.00024009,7]
[377900481,1754608245739,-393.143006,0.00024009,7]
[377900483,1754608245748,-861.2,0.00024051,3]
[377900485,1754608245759,-5461.0,0.00024054,2]
[377900487,1754608245768,-151.0,0.00024054,7]
[377900489,1754608245778,-151.0,0.00024054,7]
[377900491,1754608245788,-151.0,0.00024054,7]
[377900493,1754608245797,-151.0,0.00024054,7]
[377900495,1754608245806,-716.91917713,0.00024082,2]
[377900497,1754608245816,-160.0,0.00024085,2]
[377900499,1754608245825,-151.0,0.00024108,7]
[377900501,1754608245835,-151.0,0.00024108,7]
[377900503,1754608245845,-151.0,0.00024108,7]
[377900505,1754608245854,-454.954228,0.00024108,7]
[377900507,1754608245863,-151.0,0.00024108,7]
[377900508,1754608245874,-151.0,0.00024108,7]
[377900509,1754608245886,-460.0,0.00024109,2]
[377900510,1754608245895,-151.0,0.00024109,7]
[377900511,1754608245904,-151.0,0.00024109,7]
[377900512,1754608245914,-184.316428,0.00024109,7]
[377900513,1754608245928,-151.0,0.00024109,7]
[377900514,1754608245944,-460.0,0.00024109,2]
[377900515,1754608245953,-151.0,0.00024109,7]
[377900516,1754608245963,-460.0,0.00024109,2]
[377900517,1754608245972,-460.0,0.00024109,2]
[377900518,1754608245981,-1255.721998,0.00024109,7]
[377900519,1754608245991,-460.0,0.00024109,2]
[377900520,1754608246000,-1255.721998,0.00024109,7]
[377900521,1754608246010,-1545.01,0.00024109,2]
[377900522,1754608246019,-696.5,0.00024109,2]
[377900523,1754608246028,-761.95,0.00024109,2]
[377900524,1754608246038,-521.74,0.00024109,2]
[377900525,1754608246048,-836.57,0.00024109,2]
[377900526,1754608246057,-460.0,0.00024109,2]
[377900527,1754608246067,-635.36,0.00024109,2]
[377900528,1754608246076,-210.778512,0.00024109,7]
[377900529,1754608246085,-210.778512,0.00024109,7]
[377900531,1754608246095,-460.0,0.00024109,2]
[377900533,1754608246105,-913.2,0.00024109,2]
[377900534,1754608246114,-888.58,0.00024109,2]
[377900535,1754608246125,-460.0,0.00024109,2]
[377900537,1754608246134,-460.0,0.00024109,2]
[377900539,1754608246144,-489.79,0.00024109,2]
[377900540,1754608246153,-460.0,0.00024109,2]
[377900541,1754608246162,-151.0,0.00024109,7]
[377900542,1754608246172,-2254.66,0.00024109,2]
[377900543,1754608246182,-999.9,0.00024109,2]
[377900544,1754608246191,-557.67,0.00024109,2]
[377900545,1754608246200,-555.23,0.00024109,2]
[377900547,1754608246213,-460.0,0.00024109,2]
[377900549,1754608246222,-638.48,0.00024109,2]
[377900551,1754608246232,-1178.81,0.00024109,2]
[377900553,1754608246241,-151.0,0.00024109,7]
[377900555,1754608246251,-460.0,0.00024109,2]
[377900557,1754608246260,-460.0,0.00024109,2]
[377900560,1754608246269,-594.65,0.00024109,2]
[377900563,1754608246279,-460.0,0.00024109,2]
[377900565,1754608246288,-291.76705892,0.00024131,2]
[377900567,1754608246298,-1000.0,0.00024131,2]
[377900569,1754608246307,-500.0,0.00024179,2]
[377900571,1754608246316,-716.91917713,0.00024192,2]
[377900573,1754608246326,-783.501,0.00024192,6]
[377900575,1754608246335,-178.842,0.00024192,6]
[377900578,1754608246344,-200.75363497,0.00024199,2]
[377900579,1754608246353,-286.422739,0.000242,7]
[377900582,1754608246363,-151.0,0.000242,8]
[377900584,1754608246373,-1000.0,0.00024267,2]
[377900586,1754608246383,-716.91917713,0.00024329,2]
[377900588,1754608246392,-286.422739,0.00024369,2]
[377900590,1754608246401,-460.0,0.00024383,2]
[377900592,1754608246410,-151.0,0.00024383,7]
[377900594,1754608246420,-151.996731,0.00024383,7]
[377900595,1754608246429,-155.772803,0.00024383,7]
[377900597,1754608246439,-151.0,0.00024383,7]
[377900599,1754608246448,-151.0,0.00024383,7]
[377900601,1754608246457,-151.0,0.00024383,7]
[377900603,1754608246466,-151.0,0.00024383,7]
[377900605,1754608246476,-460.0,0.00024383,2]
[377900607,1754608246485,-151.0,0.00024383,7]
[377900609,1754608246494,-503.336535,0.00024383,7]
[377900611,1754608246504,-503.336535,0.00024383,7]
[377900613,1754608246513,-460.0,0.00024383,2]
[377900615,1754608246522,-151.0,0.00024383,7]
[377900617,1754608246532,-460.0,0.00024383,2]
[377900619,1754608246541,-460.0,0.00024383,2]
[377900621,1754608246550,-151.0,0.00024383,7]
[377900623,1754608246560,-151.0,0.00024383,7]
[377900625,1754608246570,-1545.01,0.00024383,2]
[377900627,1754608246582,-696.5,0.00024383,2]
[377900629,1754608246592,-761.95,0.00024383,2]
[377900631,1754608246601,-521.74,0.00024383,2]
[377900633,1754608246611,-836.57,0.00024383,2]
[377900635,1754608246621,-460.0,0.00024383,2]
[377900637,1754608246630,-635.36,0.00024383,2]
[377900639,1754608246640,-460.0,0.00024383,2]
[377900641,1754608246649,-913.2,0.00024383,2]
[377900643,1754608246659,-151.0,0.00024383,7]
[377900646,1754608246669,-151.0,0.00024383,7]
[377900648,1754608246679,-888.58,0.00024383,2]
[377900649,1754608246688,-151.0,0.00024383,7]
[377900651,1754608246697,-151.0,0.00024383,7]
[377900654,1754608246707,-460.0,0.00024383,2]
[377900656,1754608246716,-460.0,0.00024383,2]
[377900658,1754608246726,-489.79,0.00024383,2]
[377900660,1754608246736,-460.0,0.00024383,2]
[377900662,1754608246745,-2254.66,0.00024383,2]
[377900664,1754608246755,-999.9,0.00024383,2]
[377900665,1754608246773,-557.67,0.00024383,2]
[377900667,1754608246786,-555.23,0.00024383,2]
[377900670,1754608246796,-527.73167474,0.00024383,2]
[377900671,1754608246806,-638.48,0.00024383,2]
[377900672,1754608246815,-1178.81,0.00024383,2]
[377900673,1754608246824,-460.0,0.00024383,2]
[377900674,1754608246833,-393.143006,0.00024383,7]
[377900675,1754608246843,-460.0,0.00024383,2]
[377900676,1754608246852,-393.143006,0.00024383,7]
[377900677,1754608246861,-594.65,0.00024383,2]
[377900678,1754608246871,-460.0,0.00024383,2]
[377900679,1754608246880,-716.91917713,0.00024438,2]
[377900681,1754608246890,-861.2,0.00024441,3]
[377900682,1754608246899,-151.0,0.00024441,7]
[377900683,1754608246909,-151.0,0.00024441,7]
[377900684,1754608246920,-1024.47619267,0.00024448,2]
[377900685,1754608246930,-600.0,0.0002446,2]
[377900686,1754608246939,-291.76705892,0.00024465,2]
[377900687,1754608246949,-4486.66250676,0.00024481,2]
[377900688,1754608246959,-241.84,0.00024481,2]
[377900689,1754608246968,-7548.02499946,0.000245,2]
[377900690,1754608246977,-151.0,0.000245,6]
[377900691,1754608246987,-151.3335,0.00024527,2]
[377900692,1754608246996,-716.91917713,0.00024548,2]
[377900693,1754608247005,-1255.721998,0.00024557,7]
[377900694,1754608247015,-1255.721998,0.00024557,7]
[377900695,1754608247023,-151.0,0.00024557,7]
[377900696,1754608247032,-151.0,0.00024557,7]
[377900697,1754608247042,-231.83071243,0.0002456,7]
[377900698,1754608247051,-312.16666667,0.0002456,7]
[377900699,1754608247060,-5461.0,0.0002456,2]
[377900700,1754608247069,-260.0,0.00024633,2]
[377900701,1754608247078,-5888.0,0.00024644,2]
[377900702,1754608247087,-151.0,0.00024644,7]
[377900703,1754608247096,-151.0,0.00024644,7]
[377900704,1754608247105,-151.0,0.00024644,7]
[377900705,1754608247114,-151.0,0.00024644,7]
[377900706,1754608247124,-454.954228,0.00024644,7]
[377900707,1754608247133,-454.954228,0.00024644,7]
[377900708,1754608247143,-160.36555178,0.00024649,2]
[377900709,1754608247153,-226511.10312133,0.0002465,2]
[377900710,1754608247163,-503.62307387,0.0002465,2]
[377900712,1754608247172,-26280.47917695,0.0002465,2]
[377900718,1754608247301,-151.0,0.0002465,7]
[377900719,1754608247311,-151.0,0.0002465,7]
[377900720,1754608247322,-151.0,0.0002465,7]
[377900721,1754608247333,-151.0,0.0002465,7]
[377900722,1754608247343,-151.0,0.0002465,7]
[377900723,1754608247352,-151.0,0.0002465,7]
[377900724,1754608247362,-151.0,0.0002465,7]
[377900725,1754608247371,-296.00192,0.0002465,7]
[377900726,1754608247380,-151.0,0.0002465,7]
[377900727,1754608247389,-151.0,0.0002465,7]
[377900728,1754608247399,-151.0,0.0002465,7]
[377900729,1754608247408,-454.954228,0.0002465,7]
[377900730,1754608247418,-454.954228,0.0002465,7]
[377900731,1754608247427,-503.336535,0.0002465,7]
[377900732,1754608247437,-503.336535,0.0002465,7]
[377900733,1754608247446,-151.0,0.0002465,7]
[377900734,1754608247455,-1255.721998,0.0002465,7]
[377900735,1754608247465,-151.0,0.0002465,7]
[377900736,1754608247474,-1255.721998,0.0002465,7]
[377900737,1754608247483,-151.0,0.0002465,7]
[377900738,1754608247493,-151.0,0.0002465,7]
[377900739,1754608247502,-151.0,0.0002465,7]
[377900740,1754608247511,-160.0,0.0002465,7]
[377900741,1754608247520,-210.778512,0.0002465,7]
[377900742,1754608247529,-210.778512,0.0002465,7]
[377900743,1754608247539,-160.0,0.0002465,7]
[377900744,1754608247557,-461.3695942,0.0002465,7]
[377900745,1754608247570,-842.63596909,0.0002465,7]
[377900746,1754608247580,-151.0,0.0002465,7]
[377900747,1754608247589,-210.164912,0.0002465,7]
[377900748,1754608247598,-151.0,0.0002465,7]
[377900749,1754608247607,-151.0,0.0002465,7]
[377900750,1754608247617,-151.0,0.0002465,7]
[377900751,1754608247627,-151.0,0.0002465,7]
[377900752,1754608247636,-393.143006,0.0002465,7]
[377900754,1754608247645,-393.143006,0.0002465,7]
[377900755,1754608247654,-500.0,0.00024651,2]
[377900756,1754608247663,-150.0,0.00024651,2]
[377900757,1754608247672,-460.0,0.00024657,2]
[377900758,1754608247681,-460.0,0.00024657,2]
[377900759,1754608247691,-460.0,0.00024657,2]
[377900760,1754608247700,-460.0,0.00024657,2]
[377900761,1754608247710,-460.0,0.00024657,2]
[377900762,1754608247719,-1545.01,0.00024657,2]
[377900763,1754608247729,-761.95,0.00024657,2]
[377900764,1754608247739,-696.5,0.00024657,2]
[377900765,1754608247749,-521.74,0.00024657,2]
[377900766,1754608247758,-836.57,0.00024657,2]
[377900767,1754608247768,-460.0,0.00024657,2]
[377900768,1754608247777,-635.36,0.00024657,2]
[377900769,1754608247786,-460.0,0.00024657,2]
[377900770,1754608247796,-913.2,0.00024657,2]
[377900771,1754608247806,-888.58,0.00024657,2]
[377900772,1754608247815,-460.0,0.00024657,2]
[377900773,1754608247824,-460.0,0.00024657,2]
[377900774,1754608247833,-489.79,0.00024657,2]
[377900775,1754608247842,-460.0,0.00024657,2]
[377900776,1754608247851,-2254.66,0.00024657,2]
[377900777,1754608247860,-999.9,0.00024657,2]
[377900778,1754608247870,-557.67,0.00024657,2]
[377900779,1754608247880,-555.23,0.00024657,2]
[377900780,1754608247889,-638.48,0.00024657,2]
[377900781,1754608247899,-1178.81,0.00024657,2]
[377900782,1754608247908,-460.0,0.00024657,2]
[377900783,1754608247917,-460.0,0.00024657,2]
[377900784,1754608247927,-594.65,0.00024657,2]
[377900785,1754608247936,-460.0,0.00024657,2]
[377900786,1754608247946,-716.91917713,0.00024658,2]
[377900787,1754608247955,-380.0,0.00024658,2]
[377900788,1754608247964,-151.0,0.00024658,7]
[377900789,1754608247973,-151.0,0.00024658,7]
[377900790,1754608247983,-151.0,0.00024658,7]
[377900791,1754608247991,-200.0,0.00024658,15]
[377900792,1754608248001,-500.0,0.00024658,2]
[377900793,1754608248010,-527.57568145,0.0002466,7]
[377900794,1754608248019,-12660.90439413,0.0002466,7]
[377900795,1754608248028,-151.0,0.00024661,2]
[377900796,1754608248038,-500.0,0.00024673,2]
[377900797,1754608248047,-500.0,0.00024673,2]
[377900798,1754608248057,-500.0,0.00024673,2]
[377900799,1754608248066,-500.0,0.00024673,2]
[377900800,1754608248075,-5461.0,0.00024691,2]
[377900801,1754608248085,-231.83071243,0.000247,7]
[377900802,1754608248094,-312.16666667,0.000247,7]
[377900803,1754608248113,-4788.0319759,0.00024702,2]
[377900806,1754608248242,-445.47782603,0.00024702,2]
[377900807,1754608248255,-654.49019807,0.00024702,2]
[377900808,1754608248265,-0.74168556,0.00024702,7]
[377900810,1754608248528,-460.0,0.00021917,2]